[Event "13th Chennai Open 2022"]
[Site "Chennai"]
[Date "2022.06.20"]
[Round "3.6"]
[White "Rohit S"]
[Black "Ajay Karthikeyan"]
[Result "0-1"]
[ECO "B06"]
[WhiteElo "2141"]
[BlackElo "2436"]
[Annotator "TA"]
[PlyCount "62"]
[EventDate "2022.06.19"]
[EventType "swiss"]
[EventCountry "IND"]
[SourceTitle "playchess.com"]
[Source "ChessBase"]
[SourceQuality "1"]
[TimeControl "5400+30"]

{[%evp 9,62,41,40,47,43,24,41,5,46,45,18,-85,-87,-160,-146,-138,-122,-117,-87,-256,-256,-223,-218,-208,-127,-258,-103,-166,-165,-217,-174,-198,-216,-203,-219,-220,-200,-375,-371,-387,-402,-403,-394,-593,-589,-567,-575,-622,-611,-618,-609,-775,-757,-723,-711]} 1. e4 {[%emt 0:00:01]} g6 {[%emt 0:02:04]} 2. d4 {[%emt 0:00:11]} Bg7 {[%emt 0:00:06]} 3. Nc3 {[%emt 0:00:12]} d6 {[%emt 0:00:03]} 4. Be3 {[%emt 0:00:19]} a6 {[%emt 0:01:17]} 5. g4 {[%emt 0:00:17][%cal Bg2g4,Bg4g5][%mdl 32]} Nf6 {[%emt 0:09:24]} 6. f3 {[%emt 0:06:32] B06: Modern Defence.} h5 {[%emt 0:01:00][%cal Rh5g4]} 7. g5 {[%emt 0:03:00]} Nfd7 {[%emt 0:00:22]} 8. f4 {[%emt 0:03:10] White is slightly better.} b5 {[%emt 0:04:50] [#]} 9. Nf3 $146 {[%emt 0:05:31]} ({Predecessor:} 9. Nge2 Nb6 10. Qd3 b4 11. Nd1 a5 12. b3 Ba6 13. Qd2 c5 14. f5 Bb7 15. fxg6 fxg6 {1-0 (31) Rudzinska,M (1867)-Paziak,P (1792) Darlowko 2017}) 9... Bb7 {[%emt 0:14:57]} 10. b4 {[%emt 0:11:48]} (10. d5 $11 {keeps the balance.}) 10... c5 $17 {[%emt 0:03:11]} 11. a3 {[%emt 0:02:56]} ({White should try} 11. bxc5 dxc5 12. Bg2) 11... Nc6 {[%emt 0:04:01]} 12. Qd2 {[%emt 0:04:30]} cxd4 {[%emt 0:04:14]} (12... cxb4 13. axb4 Nxb4 14. Rb1 $17) 13. Nxd4 {[%emt 0:01:13]} Rc8 {[%emt 0:00:35]} 14. f5 $2 {[%emt 0:09:04]} (14. Rg1 $17) 14... Nxd4 {[%emt 0:12:58]} 15. Bxd4 {[%emt 0:00:02]} Bxd4 {[%emt 0:00:36]} 16. Qxd4 {[%emt 0:00:07]} O-O {[%emt 0:08:48] Strongly threatening ...Qc7.} 17. O-O-O {[%emt 0:04:20] [#]} (17. Rg1 $17) 17... Ne5 $2 {[%emt 0:07:03]} (17... Qc7 $1 $19 {[%cal Rc7c3]} 18. Rd3 gxf5) 18. fxg6 {[%emt 0:01:44]} (18. Nd5 $17) 18... Qc7 $19 {[%emt 0:06:03]} ({Inferior is} 18... fxg6 19. Bh3 $15) (18... Nxg6 19. Kb2 $15) 19. g7 {[%emt 0:04:22]} (19. Kb2 {was worth a try.} Bxe4 20. g7 (20. gxf7+ $2 Rxf7 21. Qxe4 Qxc3+ 22. Kb1 Rf2 $19) 20... Bxh1 21. gxf8=B Rxf8 22. Be2) 19... Kxg7 {[%emt 0:05:52]} ({Weaker is} 19... Qxc3 20. Qxc3 Rxc3 21. gxf8=Q+ Kxf8 22. Kb2 $14) 20. Kb2 {[%emt 0:02:27] [#]} Qxc3+ $1 {[%emt 0:02:47][%mdl 512]} 21. Qxc3 {[%emt 0:00:10]} Rxc3 {[%emt 0:00:04]} 22. Kxc3 {[%emt 0:00:04]} Bxe4 {[%emt 0:00:05]} 23. Rg1 $2 {[%emt 0:01:06]} (23. Bd3 Rc8+ 24. Kb2 Bxh1 25. Rxh1) 23... Rc8+ {[%emt 0:00:34]} 24. Kb2 {[%emt 0:01:25]} Rxc2+ {[%emt 0:00:05]} 25. Ka1 {[%emt 0:00:49]} Rxh2 {[%emt 0:00:40]} 26. Rc1 {[%emt 0:01:16]} (26. a4 $142) 26... h4 {[%emt 0:04:53][%cal Bh5h4,Bh4h3,Bh3h2][%mdl 32] Black is clearly winning.} 27. a4 {[%emt 0:00:39]} Rd2 {[%emt 0:00:51]} 28. axb5 {[%emt 0:00:16]} axb5 {[%emt 0:00:08]} 29. Bxb5 {[%emt 0:00:51]} h3 {[%emt 0:02:41] ...h2 is the strong threat.} 30. Ba6 {[%emt 0:00:54]} h2 {[%emt 0:00:41]} 31. Rge1 {[%emt 0:00:04]} Bd5 {[%emt 0:00:53] Weighted Error Value: White=0.60/Black=0.16 (very precise)} 0-1

[Event "13th Chennai Open 2022"]
[Site "Chennai"]
[Date "2022.06.20"]
[Round "3.7"]
[White "Nitin, S.."]
[Black "Arpith S Bijoy"]
[Result "1-0"]
[ECO "B12"]
[WhiteElo "2399"]
[BlackElo "1713"]
[Annotator "RC"]
[PlyCount "59"]
[EventDate "2022.06.19"]
[EventType "swiss"]
[EventCountry "IND"]
[SourceTitle "playchess.com"]
[Source "ChessBase"]
[SourceQuality "1"]
[TimeControl "5400+30"]

1. e4 {[%emt 0:00:33]} c6 {[%emt 0:00:14]} 2. d4 {[%emt 0:01:09]} d5 {[%emt 0:00:49]} 3. e5 {[%emt 0:00:09]} Bf5 {[%emt 0:01:01]} 4. Be3 {[%emt 0:00:26]} e6 {[%emt 0:01:27]} 5. Nd2 {[%emt 0:00:36]} Qb6 {[%emt 0:05:51]} 6. Nb3 {[%emt 0:05:16]} Nd7 {[%emt 0:02:41]} 7. Nf3 {[%emt 0:03:46]} h6 {[%emt 0:03:30]} 8. Be2 {[%emt 0:05:38]} Bh7 {[%emt 0:02:50]} 9. O-O {[%emt 0:01:16]} Ne7 {[%emt 0:01:51]} 10. a4 {[%emt 0:01:42]} Qc7 {[%emt 0:07:04]} 11. a5 {[%emt 0:00:43]} Nf5 {[%emt 0:01:22]} 12. Bd2 {[%emt 0:02:23]} Be7 {[%emt 0:01:39]} 13. c4 {[%emt 0:00:44]} dxc4 {[%emt 0:04:18]} 14. Bxc4 {[%emt 0:00:31]} O-O {[%emt 0:00:10]} 15. Qe2 {[%emt 0:02:08]} Rfe8 {[%emt 0:09:16]} 16. Rac1 {[%emt 0:01:08]} Rad8 {[%emt 0:08:06]} 17. a6 {[%emt 0:06:12]} b6 {[%emt 0:00:17]} 18. Bd3 {[%emt 0:02:08]} Nb8 {[%emt 0:01:41]} 19. Be4 {[%emt 0:03:11]} Bf8 {[%emt 0:03:48]} 20. Qd3 {[%emt 0:04:15]} Bg6 {[%emt 0:02:32]} 21. d5 {[%emt 0:01:40]} Qc8 {[%emt 0:02:46]} 22. d6 {[%emt 0:01:10]} Nxd6 {[%emt 0:01:12]} 23. exd6 {[%emt 0:04:34]} f5 {[%emt 0:01:04]} 24. Bxc6 {[%emt 0:00:52]} Nxc6 {[%emt 0:00:13]} 25. Qb5 {[%emt 0:00:36]} Bxd6 {[%emt 0:08:25]} 26. Rxc6 {[%emt 0:02:36]} Qd7 {[%emt 0:00:03]} 27. Bc3 {[%emt 0:00:41]} Bh5 {[%emt 0:02:29]} 28. Ne5 {[%emt 0:00:52]} Bxe5 {[%emt 0:00:31]} 29. Qxe5 {[%emt 0:00:21]} Re7 {[%emt 0:00:13]} 30. Nd4 {[%emt 0:00:30]} 1-0

[Event "13th Chennai Open 2022"]
[Site "Chennai"]
[Date "2022.06.20"]
[Round "3.8"]
[White "Dinesh Kumar Jaganathan"]
[Black "Srihari L R"]
[Result "0-1"]
[ECO "B11"]
[WhiteElo "1974"]
[BlackElo "2404"]
[Annotator "TA"]
[PlyCount "80"]
[EventDate "2022.06.19"]
[EventType "swiss"]
[EventCountry "IND"]
[SourceTitle "playchess.com"]
[Source "ChessBase"]
[SourceQuality "1"]
[TimeControl "5400+30"]

{[%evp 9,80,-14,-7,-5,-18,-35,-8,-7,-14,-41,-41,-48,-40,-52,-29,-38,-32,-33,-6,-11,-11,-15,0,0,0,-4,18,15,11,8,11,-3,0,0,0,0,10,12,18,27,11,0,0,0,-2,-18,-20,-20,-20,-20,-18,-68,-68,-64,-64,-114,-100,-155,-166,-165,-155,-220,-197,-218,-144,-218,-208,-218,-215,-223,-213,-209,-179]} 1. Nc3 {[%emt 0:00:30]} d5 {[%emt 0:00:30]} 2. e4 {[%emt 0:00:30]} c6 {[%emt 0:00:30]} 3. Nf3 {[%emt 0:00:30]} Bg4 {[%emt 0:00:30]} 4. exd5 {[%emt 0:00:30]} cxd5 {[%emt 0:00:30]} 5. Bb5+ {[%emt 0:00:30]} Nc6 {[%emt 0:00:30]} 6. d4 {[%emt 0:00:30] B11: Caro-Kann: Two Knights Variation.} e6 {[%emt 0:00:30]} 7. Qd3 {[%emt 0:00:30]} Bxf3 {[%emt 0:00:30]} 8. Qxf3 {[%emt 0:00:30] The position is equal.} Bd6 {[%emt 0:00:30] [#]} 9. Ne2 $146 {[%emt 0:00:30]} ({Predecessor:} 9. O-O Qh4 10. h3 Qxd4 11. Rd1 Qf6 12. Qe2 Qe5 13. Qxe5 Bxe5 14. Bd2 a6 15. Bd3 {0-1 (45) Zak,P (1328)-Paliszewski,D (1621) Szczyrk 2014}) 9... Qa5+ {[%emt 0:00:30]} 10. Nc3 {[%emt 0:00:30]} Nge7 {[%emt 0:00:30][%cal Bg8e7,Be7c6,Bc6a5,Ba5c4][%mdl 32]} 11. O-O {[%emt 0:00:30]} Qc7 {[%emt 0:00:30]} 12. h3 {[%emt 0:00:30]} a6 {[%emt 0:00:30]} 13. Bxc6+ {[%emt 0:00:30]} Nxc6 {[%emt 0:00:30]} 14. Ne2 {[%emt 0:00:30][%cal Bc3e2,Be2f4,Bf4h5][%mdl 32]} O-O {[%emt 0:00:30]} 15. c3 {[%emt 0:00:30]} Na5 {[%emt 0:00:30]} 16. Nf4 {[%emt 0:00:30]} Nc4 {[%emt 0:00:30]} 17. Nh5 {[%emt 0:00:30] [#] Strongly threatening b3.} f6 {[%emt 0:00:30]} 18. Re1 {[%emt 0:00:30]} Qf7 {[%emt 0:00:30]} 19. b3 {[%emt 0:00:30]} Nb6 {[%emt 0:00:30]} 20. a4 {[%emt 0:00:30]} Rac8 {[%emt 0:00:30]} 21. Ba3 {[%emt 0:00:30]} Bxa3 {[%emt 0:00:30]} 22. Rxa3 {[%emt 0:00:30]} Rc6 {[%emt 0:00:30]} 23. Raa1 {[%emt 0:00:30]} Rfc8 {[%emt 0:00:30][%cal Bf8c8,Bc8c3,Bc3b3,Bb3b4][%mdl 32]} 24. Re3 {[%emt 0:00:30]} Nd7 {[%emt 0:00:30]} 25. Rae1 {[%emt 0:00:30]} e5 {[%emt 0:00:30] Against Nf4} 26. dxe5 {[%emt 0:00:30]} Nxe5 {[%emt 0:00:30]} 27. Qd1 {[%emt 0:00:30]} (27. Qf5 {is interesting.} Rxc3 28. Rd1 R8c7 29. Rxc3 Rxc3 30. f4) 27... Rxc3 {[%emt 0:00:30]} 28. Rxc3 {[%emt 0:00:30]} Rxc3 {[%emt 0:00:30]} 29. Nf4 {[%emt 0:00:30] Against Rd3} Qd7 {[%emt 0:00:30]} 30. Qd4 {[%emt 0:00:30]} (30. Qd2 $11 Rxb3 31. Qa2) 30... Rxb3 $15 {[%emt 0:00:30] Black is more active.} 31. Rd1 $1 {[%emt 0:00:30]} Nc6 {[%emt 0:00:30]} 32. Qxd5+ {[%emt 0:00:30]} (32. Qc5 $15) 32... Qxd5 $17 {[%emt 0:00:30]} 33. Rxd5 $15 {[%emt 0:00:30][%mdl 4096] Endgame KRN-KRN} ({White should try} 33. Nxd5 Kf7 34. Kf1) 33... Rb4 $17 {[%emt 0:00:30] Black is clearly better.} 34. Ne6 {[%emt 0:00:30]} Rxa4 {[%emt 0:00:30] And now ...Kf7 would win.} 35. Rd7 {[%emt 0:00:30]} (35. Nd8 $17) 35... Re4 $19 {[%emt 0:00:30]} ({And not} 35... Ra1+ 36. Kh2 Re1 37. Nc5 $17) 36. Nc5 {[%emt 0:00:30]} Re1+ {[%emt 0:00:30]} 37. Kh2 {[%emt 0:00:30] [#]} Re7 $1 {[%emt 0:00:30]} 38. Rxe7 {[%emt 0:00:30]} Nxe7 {[%emt 0:00:30]} 39. Nxb7 {[%emt 0:00:30]} Nf5 {[%emt 0:00:30]} 40. Kg1 {[%emt 0:00:30]} Nd4 {[%emt 0:00:30] Weighted Error Value: White=0.09 (flawless) /Black=0.04 (flawless)} 0-1

[Event "13th Chennai Open 2022"]
[Site "Chennai"]
[Date "2022.06.20"]
[Round "3.9"]
[White "Priyankara, Chamil"]
[Black "Srijit Paul"]
[Result "0-1"]
[ECO "A80"]
[WhiteElo "1938"]
[BlackElo "2399"]
[Annotator "TA"]
[PlyCount "50"]
[EventDate "2022.06.19"]
[EventType "swiss"]
[EventCountry "IND"]
[SourceTitle "playchess.com"]
[Source "ChessBase"]
[SourceQuality "1"]
[TimeControl "5400+30"]

{[%evp 9,50,-34,-24,-42,-34,-76,-44,-65,-66,-130,-152,-141,-156,-154,-160,-211,-204,-196,-133,-131,-139,-142,-129,-190,-156,-162,-162,-277,-292,-285,-236,-284,-281,-280,-236,-370,-355,-744,-344,-718,-710,-29985,-5404]} 1. d4 {[%emt 0:12:14]} f5 {[%emt 0:00:06]} 2. g4 {[%emt 1:19:16]} d5 {[%emt 0:00:07]} 3. gxf5 {[%emt 0:00:00]} Bxf5 {[%emt 0:00:07]} 4. c4 {[%emt 0:00:00] [#]} e6 $146 {[%emt 0:01:31]} ({Predecessor:} 4... Nc6 5. Nf3 Nf6 6. Nc3 Qd7 7. Ne5 Nxe5 8. dxe5 d4 9. Nb5 Ne4 10. f3 a6 11. fxe4 Bxe4 {0-1 (45) Teske,H (2518)-Kadziolka,B (2295) Bad Wiessee 2007}) 5. Nc3 {[%emt 0:00:00]} Nc6 {[%emt 0:01:06][%cal Bb8c6,Bc6d4,Bd4e2][%mdl 32]} 6. a3 {[%emt 0:00:00] Inhibits Nb4. A80: Dutch Defence: Unusual White second moves.} Nf6 {[%emt 0:10:16]} 7. Bg5 {[%emt 0:00:00]} h6 {[%emt 0:02:48]} 8. Bxf6 {[%emt 0:00:00] Black is slightly better.} Qxf6 {[%emt 0:00:07]} (8... gxf6 9. cxd5 exd5 10. e3 $14) 9. cxd5 {[%emt 0:00:00]} (9. e3 $15) 9... Nxd4 $17 {[%emt 0:00:25] Strongly threatening ...Nc2+.} 10. e4 {[%emt 0:00:00] Qa4+ is the strong threat.} Bg6 {[%emt 0:05:24] Threatens to win with ...Bc5. Active counter play!} 11. Qa4+ {[%emt 0:00:00]} c6 {[%emt 0:00:06]} 12. O-O-O {[%emt 0:00:00] [#]} (12. dxc6 $17 {is a better defense.} Nxc6 13. Bb5) 12... Bc5 $1 $19 {[%emt 0:00:15][%cal Bf8c5,Bc5e3,Be3d4][%mdl 32]} 13. dxc6 {[%emt 0:00:00]} bxc6 {[%emt 0:07:40]} ({And not} 13... Nxc6 14. Qc4 Bxf2 15. Bh3 $17) ({Black should try} 13... O-O $19 {[%cal Og6e4] Hoping for ...Bxe4!} 14. Kb1 (14. cxb7 $2 Rab8 $17) 14... Nxc6) 14. Nge2 $17 {[%emt 0:00:00]} Nxe2+ {[%emt 0:00:06]} 15. Bxe2 {[%emt 0:00:00]} O-O {[%emt 0:00:11]} 16. f3 {[%emt 0:00:00]} (16. Qc4 $17 Bxf2 17. Kb1) 16... Kh8 {[%emt 0:09:57]} 17. Qc4 {[%emt 0:00:00]} Be3+ {[%emt 0:00:22]} 18. Kc2 {[%emt 0:00:00] [#]} (18. Kb1 $142) 18... e5 $1 $19 {[%emt 0:00:23]} 19. Rd7 {[%emt 0:00:00]} Bf7 {[%emt 0:01:04]} 20. Qa6 {[%emt 0:00:00]} Rab8 {[%emt 0:04:18]} 21. Rb7 {[%emt 0:00:00]} Bd4 {[%emt 0:00:34] A strong pair of Bishops.} 22. Rf1 {[%emt 0:00:00]} (22. Rd1 {was necessary.}) 22... Qf4 {[%emt 0:02:56]} 23. Qxc6 {[%emt 0:02:58]} (23. h3) 23... Qe3 {[%emt 0:15:19]} (23... Bxc3 $142 24. bxc3 Qxh2) 24. Re1 $2 {[%emt 0:01:53]} (24. Bb5 Qg5 25. Re1 (25. Kb1 $2 Bxc3 26. Rxb8 Rxb8 $19)) 24... Bxc3 {[%emt 0:00:21]} 25. bxc3 {[%emt 0:00:18] [#]} Rfd8 $1 {[%emt 0:00:08] Weighted Error Value: White=0.85/Black=0.25 (precise)} 0-1

[Event "13th Chennai Open 2022"]
[Site "Chennai"]
[Date "2022.06.20"]
[Round "3.10"]
[White "Nguyen, Duc Hoa"]
[Black "Daksh Goyal"]
[Result "0-1"]
[ECO "B90"]
[WhiteElo "2398"]
[BlackElo "1795"]
[Annotator "TA"]
[PlyCount "72"]
[EventDate "2022.06.19"]
[EventType "swiss"]
[EventCountry "IND"]
[SourceTitle "playchess.com"]
[Source "ChessBase"]
[SourceQuality "1"]
[TimeControl "5400+30"]

{[%evp 9,72,12,19,6,0,-2,7,-10,0,-3,41,24,39,33,36,0,0,-43,-43,-39,-41,-47,-40,-37,-47,-32,-43,-239,-247,-237,-230,-288,-270,-248,-227,-363,-377,-323,-296,-277,-266,-617,-549,-1247,-1223,-1096,-1222,-1957,-1856,-1527,-716,-699,-650,-731,-718,-692,-618,-29977,-29978,-29975,-1568,-29978,-29978,-29992,-29993]} 1. e4 {[%emt 0:00:06]} c5 {[%emt 0:00:06]} 2. Nf3 {[%emt 0:00:37]} d6 {[%emt 0:00:40]} 3. d4 {[%emt 0:00:09]} cxd4 {[%emt 0:00:06]} 4. Nxd4 {[%emt 0:00:05]} Nf6 {[%emt 0:00:09]} 5. Nc3 {[%emt 0:00:07]} a6 {[%emt 0:00:04]} 6. h4 {[%emt 0:02:19] B90: Sicilian Najdorf: Unusual White 6th moves, 6 Be3 Ng4 and 6 Be3 e5.} e5 {[%emt 0:06:48]} 7. Nb3 {[%emt 0:00:21]} Be7 {[%emt 0:03:59]} 8. Be2 {[%emt 0:01:26] The position is equal.} Be6 {[%emt 0:04:50]} 9. f4 {[%emt 0:04:57] [#]} h5 $146 {[%emt 0:14:55]} ({Predecessor:} 9... b5 10. fxe5 dxe5 11. Qxd8+ Bxd8 12. Bf3 Nbd7 13. Bd2 Rc8 14. O-O-O Nb6 15. Bg5 b4 {½-½ (73) Martinez Alcantara,J (2598)-So,W (2772) Chess.com INT 2022}) 10. f5 {[%emt 0:00:44]} Bc8 {[%emt 0:02:14][%cal Od6d5]} 11. Bg5 {[%emt 0:10:00]} Nbd7 {[%emt 0:01:56][%cal Bb8d7,Bd7f6,Bf6e4][%mdl 32]} 12. g3 {[%emt 0:11:05]} b5 {[%emt 0:20:04]} 13. a4 {[%emt 0:10:11]} Bb7 {[%emt 0:06:54] And now ...b4 would win.} 14. axb5 {[%emt 0:02:46]} axb5 {[%emt 0:00:52] aiming for ...b4.} 15. Bxf6 {[%emt 0:00:35]} Nxf6 {[%emt 0:02:28]} 16. Bxb5+ {[%emt 0:00:04]} Kf8 {[%emt 0:00:09]} 17. Rxa8 {[%emt 0:03:14]} Qxa8 {[%emt 0:04:34]} 18. Kd2 $2 {[%emt 0:14:45] Now White is beyond hope.} (18. O-O $15) 18... Nxe4+ $19 {[%emt 0:07:36]} 19. Nxe4 {[%emt 0:00:06]} Bxe4 {[%emt 0:00:03]} 20. Rh2 {[%emt 0:07:58]} Qd5+ {[%emt 0:04:19]} 21. Bd3 {[%emt 0:00:04]} Bf3 {[%emt 0:01:28]} 22. Qg1 {[%emt 0:06:31]} (22. Qf1 {is the only way for White.}) 22... e4 {[%emt 0:03:35]} 23. Qa7 {[%emt 0:00:06] Threatening mate with Qb8+.} Bd8 {[%emt 0:01:08]} 24. Qd7 {[%emt 0:01:36][%cal Rd7d8]} Bb6 {[%emt 0:07:36] Chess con chili.} 25. Qc8+ $2 {[%emt 0:17:23]} (25. Qb5 Qxb5 26. Bxb5) 25... Ke7 {[%emt 0:06:27]} 26. Qxh8 {[%emt 0:00:33]} exd3 {[%emt 0:00:00]} 27. f6+ {[%emt 0:03:06]} gxf6 {[%emt 0:00:00]} 28. Qc8 {[%emt 0:01:59]} dxc2+ {[%emt 0:00:00]} 29. Kxc2 {[%emt 0:00:04]} Bd1+ {[%emt 0:00:51] This bishop pair is nice.} (29... Qd1+ $142 30. Kc3 Bd5) 30. Kb1 {[%emt 0:01:58]} Qxb3 {[%emt 0:00:53]} 31. Rd2 {[%emt 0:00:31]} Bg4 {[%emt 0:00:38]} 32. Qb7+ {[%emt 0:00:25]} Kf8 {[%emt 0:00:32] ( -> ...Bf5+)} 33. Qb8+ {[%emt 0:00:06]} Kg7 {[%emt 0:00:12]} 34. Qxd6 {[%emt 0:00:06]} Be3 {[%emt 0:00:47]} (34... Bf5+ $142 35. Ka1 {[#]} Qc4 $1 36. g4 hxg4 $1 37. Qe7 Bc5 38. Qxc5 Qxc5 39. Ka2 Qa5+ 40. Kb3 Qxd2 41. Kc4 g3 42. h5 g2 43. b3 g1=Q 44. h6+ Kxh6 45. Kb5 Qdd4 46. Ka5 Qc5+ 47. Ka6 Bc8#) 35. Rd5 {[%emt 0:00:25]} Qc4 {[%emt 0:00:31]} 36. Rd1 {[%emt 0:01:30]} Bf5+ {[%emt 0:00:23] Weighted Error Value: White=1.10/Black=0.49} 0-1

[Event "13th Chennai Open 2022"]
[Site "Chennai"]
[Date "2022.06.20"]
[Round "3.11"]
[White "Pawar, Harshit"]
[Black "Hari Madhavan N B"]
[Result "1-0"]
[ECO "D23"]
[WhiteElo "1961"]
[BlackElo "2374"]
[Annotator "TA"]
[PlyCount "75"]
[EventDate "2022.06.19"]
[EventType "swiss"]
[EventCountry "IND"]
[SourceTitle "playchess.com"]
[Source "ChessBase"]
[SourceQuality "1"]
[TimeControl "5400+30"]

{[%evp 18,75,0,12,27,8,34,26,31,30,28,22,22,-2,0,-1,13,17,35,27,103,122,141,115,107,137,173,170,166,156,193,170,168,164,147,42,42,41,32,42,36,22,265,260,256,229,262,275,269,131,264,234,241,170,365,279,444,411,453,364]} 1. d4 {[%emt 0:03:04]} d5 {[%emt 0:00:07]} 2. c4 {[%emt 0:00:11]} c6 {[%emt 0:00:18]} 3. Nf3 {[%emt 0:00:21]} Nf6 {[%emt 0:00:06]} 4. Qc2 {[%emt 0:00:04]} dxc4 {[%emt 0:00:16]} 5. Qxc4 {[%emt 0:00:33]} Bf5 {[%emt 0:00:07]} 6. g3 {[%emt 0:00:24]} e6 {[%emt 0:00:07]} 7. Bg2 {[%emt 0:00:07]} Nbd7 {[%emt 0:00:08]} 8. O-O {[%emt 0:02:08]} Be7 {[%emt 0:00:09]} 9. Nc3 {[%emt 0:00:06]} O-O {[%emt 0:00:09]} 10. e3 {[%emt 0:06:17]} Qc7 {[%emt 0:11:25] D23: Queen's Gambit Accepted: 3 Nf3 Nf6 sidelines.} 11. Qe2 {[%emt 0:02:35]} Bg4 {[%emt 0:02:32]} 12. h3 {[%emt 0:00:12] [#]} Bxf3 $146 {[%emt 0:00:09] White has an edge.} ({Predecessor:} 12... Bh5 13. g4 Bg6 14. e4 c5 15. d5 exd5 16. e5 Ne4 17. Nxd5 Qd8 18. Nh2 f5 19. gxf5 Rxf5 20. Qxe4 {1-0 (26) Tebelmann,L (2069)-Demir,B (2047) Bayern 2019}) 13. Qxf3 {[%emt 0:00:05]} e5 {[%emt 0:00:09]} 14. dxe5 {[%emt 0:00:41]} Nxe5 {[%emt 0:00:10]} 15. Qf5 {[%emt 0:00:01]} Rad8 {[%emt 0:01:29]} 16. Qc2 {[%emt 0:00:28]} h5 {[%emt 0:07:03]} 17. Bd2 {[%emt 0:02:19]} h4 {[%emt 0:01:27]} 18. g4 {[%emt 0:00:17]} Nfxg4 {[%emt 0:22:26]} 19. hxg4 $16 {[%emt 0:00:14]} h3 {[%emt 0:00:16]} 20. Be4 {[%emt 0:00:48]} Nxg4 {[%emt 0:00:09][%csl Gg4][%cal Rc7h2]} 21. f4 {[%emt 0:00:20]} Bc5 {[%emt 0:02:18][%cal Od8d2] White must now prevent ...Rxd2!} 22. Rae1 {[%emt 0:07:18]} Qe7 {[%emt 0:05:21]} 23. Kh1 {[%emt 0:02:34]} Qh4 {[%emt 0:07:08]} 24. Bc1 {[%emt 0:04:22]} Rfe8 {[%emt 0:01:02]} 25. Qe2 {[%emt 0:06:15]} Re7 {[%emt 0:00:53]} 26. Qf3 {[%emt 0:07:25]} (26. f5 $1 $16 {Threatens to win with Rf4.} Nf6 27. Rf4) 26... Rde8 $1 $14 {[%emt 0:01:11]} 27. Re2 {[%emt 0:00:57] And now Rg1 would win.} g6 {[%emt 0:01:08]} 28. f5 {[%emt 0:11:39]} g5 {[%emt 0:04:42] aiming for ...Nf6.} 29. Bd2 {[%emt 0:14:13][%cal Bc1d2,Bd2e1,Be1f2][%mdl 32] Hoping for Be1.} Rxe4 $2 {[%emt 0:00:38] [#]} 30. Be1 $1 $18 {[%emt 0:00:06]} (30. Nxe4 {[#]} Rxe4 $1 31. Be1 (31. Qxe4 $2 Nf2+ 32. Rexf2 Qxe4+ 33. Kg1 g4 $19) 31... Ne5 32. Bxh4 Nxf3 33. Rxf3 Rxh4 $11) 30... Nf2+ {[%emt 0:02:43]} 31. Bxf2 {[%emt 0:00:27]} Qg4 {[%emt 0:00:06]} 32. Qxg4 {[%emt 0:00:12]} Rxg4 {[%emt 0:00:05]} 33. e4 {[%emt 0:00:08]} (33. Kh2 $18 {and the rest is easy.}) 33... Bb4 {[%emt 0:00:11] This move loses the game for Black.} (33... Rf4 $16 {is a better defense.}) 34. Rg1 {[%emt 0:01:50]} (34. Bxa7 $6 Bxc3 35. bxc3 Rgxe4 36. Rxe4 Rxe4 $18) 34... Rxg1+ {[%emt 0:00:12]} 35. Kxg1 {[%emt 0:00:10] e5 is the strong threat.} g4 $2 {[%emt 0:00:35]} (35... Bd6 {was worth a try.} 36. Bd4 (36. Bxa7 Be5 $18) 36... Bc7) 36. Kh2 {[%emt 0:00:35]} ({Weaker is} 36. Bxa7 f6 37. Bd4 Kf7 $18) 36... Bd6+ {[%emt 0:00:09]} (36... f6 $142 37. Bg3 (37. Bxa7 Bd6+ 38. Kg1 Bf4 $16) 37... Rd8) 37. Bg3 {[%emt 0:00:01]} Bb4 {[%emt 0:00:21]} 38. Bf4 {[%emt 0:00:31] Weighted Error Value: White=0.18 (very precise) /Black=0.45} 1-0